Workbook

Sheet 18 अवधि बजट
B1: कंपनी बजट
G2: प्रारंभ दिनांक | H2: 2011-01-01 | I2: अवधि की लंबाई (दिनों में) | K2: 14 | L2: समाप्ति दिनांक | M2: =TEXT(T5,"dd-mm-yyyy") -> 
C5: =UPPER(TEXT(H2,"dd MMMM")) -> 01 जनवरी | D5: =UPPER(TEXT(C5+DayInterval,"dd MMMM")) ->  | U5: कुल | V5: रूझान
B6: शुद्ध आय | C6: =आय_तालिका[[#Totals],[Week 1]]-ExpensesTable[[#Totals],[Week 1]] -> रु 1,750.00 | D6: =आय_तालिका[[#Totals],[Week 2]]-ExpensesTable[[#Totals],[Week 2]] -> रु 2,236.00 | E6: =आय_तालिका[[#Totals],[Week 3]]-ExpensesTable[[#Totals],[Week 3]] -> रु 1,442.00 | F6: =आय_तालिका[[#Totals],[Week 4]]-ExpensesTable[[#Totals],[Week 4]] -> रु 2,253.00 | G6: =आय_तालिका[[#Totals],[Week 5]]-ExpensesTable[[#Totals],[Week 5]] -> रु 1,533.00 | H6: =आय_तालिका[[#Totals],[Week 6]]-ExpensesTable[[#Totals],[Week 6]] -> रु 1,086.00 | I6: =आय_तालिका[[#Totals],[Week 7]]-ExpensesTable[[#Totals],[Week 7]] -> रु 1,594.00 | J6: =आय_तालिका[[#Totals],[Week 8]]-ExpensesTable[[#Totals],[Week 8]] -> 0 | K6: =आय_तालिका[[#Totals],[Week 9]]-ExpensesTable[[#Totals],[Week 9]] -> 0 | L6: =आय_तालिका[[#Totals],[Week 10]]-ExpensesTable[[#Totals],[Week 10]] -> 0 | M6: =आय_तालिका[[#Totals],[Week 11]]-ExpensesTable[[#Totals],[Week 11]] -> 0 | N6: =आय_तालिका[[#Totals],[Week 12]]-ExpensesTable[[#Totals],[Week 12]] -> 0 | O6: =आय_तालिका[[#Totals],[Week 13]]-ExpensesTable[[#Totals],[Week 13]] -> 0 | P6: =आय_तालिका[[#Totals],[Week 14]]-ExpensesTable[[#Totals],[Week 14]] -> 0 | Q6: =आय_तालिका[[#Totals],[Week 15]]-ExpensesTable[[#Totals],[Week 15]] -> 0 | R6: =आय_तालिका[[#Totals],[Week 16]]-ExpensesTable[[#Totals],[Week 16]] -> 0 | S6: =आय_तालिका[[#Totals],[Week 17]]-ExpensesTable[[#Totals],[Week 17]] -> 0 | T6: =आय_तालिका[[#Totals],[Week 18]]-ExpensesTable[[#Totals],[Week 18]] -> 0 | U6: =आय_तालिका[[#Totals],[Total]]-ExpensesTable[[#Totals],[Total]] -> रु 11,894.00
A8: आय
B9: आय आइटम 1 | C9: रु 3,000.00 | D9: रु 3,500.00 | E9: रु 2,978.00 | F9: रु 3,384.00 | G9: रु 2,858.00 | H9: रु 2,809.00 | I9: रु 3,220.00 | U9: =SUM(आय_तालिका[[#This Row],[Week 1]:[Week 18]]) -> रु 21,749.00
B10: आय आइटम 2 | C10: 1,150.00 | D10: 1,200.00 | E10: 1,144.00 | F10: 1,400.00 | G10: 1,358.00 | H10: 1,154.00 | I10: 1,245.00 | U10: =SUM(आय_तालिका[[#This Row],[Week 1]:[Week 18]]) -> 8,651.00
B11: आय आइटम 3 | C11: 300.00 | D11: 350.00 | E11: 392.00 | F11: 326.00 | G11: 381.00 | H11: 364.00 | I11: 315.00 | U11: =SUM(आय_तालिका[[#This Row],[Week 1]:[Week 18]]) -> 2,428.00
B12: कुल आय | C12: =SUBTOTAL(109,आय_तालिका[Week 1]) -> रु 4,450.00 | D12: =SUBTOTAL(109,आय_तालिका[Week 2]) -> रु 5,050.00 | E12: =SUBTOTAL(109,आय_तालिका[Week 3]) -> रु 4,514.00 | F12: =SUBTOTAL(109,आय_तालिका[Week 4]) -> रु 5,110.00 | G12: =SUBTOTAL(109,आय_तालिका[Week 5]) -> रु 4,597.00 | H12: =SUBTOTAL(109,आय_तालिका[Week 6]) -> रु 4,327.00 | I12: =SUBTOTAL(109,आय_तालिका[Week 7]) -> रु 4,780.00 | J12: =SUBTOTAL(109,आय_तालिका[Week 8]) -> 0 | K12: =SUBTOTAL(109,आय_तालिका[Week 9]) -> 0 | L12: =SUBTOTAL(109,आय_तालिका[Week 10]) -> 0 | M12: =SUBTOTAL(109,आय_तालिका[Week 11]) -> 0 | N12: =SUBTOTAL(109,आय_तालिका[Week 12]) -> 0 | O12: =SUBTOTAL(109,आय_तालिका[Week 13]) -> 0 | P12: =SUBTOTAL(109,आय_तालिका[Week 14]) -> 0 | Q12: =SUBTOTAL(109,आय_तालिका[Week 15]) -> 0 | R12: =SUBTOTAL(109,आय_तालिका[Week 16]) -> 0 | S12: =SUBTOTAL(109,आय_तालिका[Week 17]) -> 0 | T12: =SUBTOTAL(109,आय_तालिका[Week 18]) -> 0 | U12: =SUBTOTAL(109,आय_तालिका[Total]) -> रु 32,828.00
A14: व्यय
B15: भत्ते | C15: रु 1,500.00 | D15: रु 1,577.00 | E15: रु 1,823.00 | F15: रु 1,529.00 | G15: रु 1,759.00 | H15: रु 1,947.00 | I15: रु 1,875.00 | U15: =SUM(ExpensesTable[[#This Row],[Week 1]:[Week 18]]) -> रु 12,010.00
B16: किराया | C16: 1,000.00 | D16: 1,000.00 | E16: 1,000.00 | F16: 1,000.00 | G16: 1,000.00 | H16: 1,000.00 | I16: 1,000.00 | U16: =SUM(ExpensesTable[[#This Row],[Week 1]:[Week 18]]) -> 7,000.00
B17: बिजली | C17: 40.00 | D17: 43.00 | E17: 40.00 | F17: 42.00 | G17: 45.00 | H17: 40.00 | I17: 42.00 | U17: =SUM(ExpensesTable[[#This Row],[Week 1]:[Week 18]]) -> 292.00
B18: टेलीफ़ोन | C18: 12.00 | D18: 11.00 | E18: 13.00 | F18: 14.00 | G18: 11.00 | H18: 15.00 | I18: 15.00 | U18: =SUM(ExpensesTable[[#This Row],[Week 1]:[Week 18]]) -> 91.00
B19: इंटरनेट | C19: 15.00 | D19: 15.00 | E19: 15.00 | F19: 15.00 | G19: 15.00 | H19: 15.00 | I19: 15.00 | U19: =SUM(ExpensesTable[[#This Row],[Week 1]:[Week 18]]) -> 105.00
B20: पानी | C20: 11.00 | D20: 10.00 | E20: 13.00 | F20: 10.00 | G20: 13.00 | H20: 10.00 | I20: 12.00 | U20: =SUM(ExpensesTable[[#This Row],[Week 1]:[Week 18]]) -> 79.00
B21: गैस | C21: 23.00 | D21: 27.00 | E21: 26.00 | F21: 27.00 | G21: 22.00 | H21: 29.00 | I21: 21.00 | U21: =SUM(ExpensesTable[[#This Row],[Week 1]:[Week 18]]) -> 175.00
B22: अपशिष्ट निपटान | C22: 4.00 | D22: 4.00 | E22: 4.00 | F22: 4.00 | G22: 4.00 | H22: 4.00 | I22: 4.00 | U22: =SUM(ExpensesTable[[#This Row],[Week 1]:[Week 18]]) -> 28.00
B23: केबल टीवी | C23: 10.00 | D23: 10.00 | E23: 10.00 | F23: 10.00 | G23: 10.00 | H23: 10.00 | I23: 10.00 | U23: =SUM(ExpensesTable[[#This Row],[Week 1]:[Week 18]]) -> 70.00
B24: कार्यालय की आपूर्तियाँ | C24: 25.00 | D24: 57.00 | E24: 68.00 | F24: 146.00 | G24: 125.00 | H24: 111.00 | I24: 132.00 | U24: =SUM(ExpensesTable[[#This Row],[Week 1]:[Week 18]]) -> 664.00
B25: बीमा | C25: 60.00 | D25: 60.00 | E25: 60.00 | F25: 60.00 | G25: 60.00 | H25: 60.00 | I25: 60.00 | U25: =SUM(ExpensesTable[[#This Row],[Week 1]:[Week 18]]) -> 420.00
B26: कुल व्यय | C26: =SUBTOTAL(109,ExpensesTable[Week 1]) -> रु 2,700.00 | D26: =SUBTOTAL(109,ExpensesTable[Week 2]) -> रु 2,814.00 | E26: =SUBTOTAL(109,ExpensesTable[Week 3]) -> रु 3,072.00 | F26: =SUBTOTAL(109,ExpensesTable[Week 4]) -> रु 2,857.00 | G26: =SUBTOTAL(109,ExpensesTable[Week 5]) -> रु 3,064.00 | H26: =SUBTOTAL(109,ExpensesTable[Week 6]) -> रु 3,241.00 | I26: =SUBTOTAL(109,ExpensesTable[Week 7]) -> रु 3,186.00 | J26: =SUBTOTAL(109,ExpensesTable[Week 8]) -> 0 | K26: =SUBTOTAL(109,ExpensesTable[Week 9]) -> 0 | L26: =SUBTOTAL(109,ExpensesTable[Week 10]) -> 0 | M26: =SUBTOTAL(109,ExpensesTable[Week 11]) -> 0 | N26: =SUBTOTAL(109,ExpensesTable[Week 12]) -> 0 | O26: =SUBTOTAL(109,ExpensesTable[Week 13]) -> 0 | P26: =SUBTOTAL(109,ExpensesTable[Week 14]) -> 0 | Q26: =SUBTOTAL(109,ExpensesTable[Week 15]) -> 0 | R26: =SUBTOTAL(109,ExpensesTable[Week 16]) -> 0 | S26: =SUBTOTAL(109,ExpensesTable[Week 17]) -> 0 | T26: =SUBTOTAL(109,ExpensesTable[Week 18]) -> 0 | U26: =SUBTOTAL(109,ExpensesTable[Total]) -> रु 20,934.00
